fUST/lending_fUST_20250715
["ID","MTS","AMOUNT","RATE_DAILY","PERIOD"]
[372296170,1752576667009,-968.0,0.00022315,2]
[372296171,1752576667019,-500.0,0.00022321,2]
[372296172,1752576667029,-259.0,0.00022329,2]
[372296173,1752576667038,-500.0,0.00022329,7]
[372296174,1752576667048,-810.0,0.00022329,7]
[372296175,1752576667058,-247.18116899,0.00022329,7]
[372296176,1752576667068,-500.0,0.00022357,7]
[372296177,1752576667078,-810.0,0.00022357,7]
[372296178,1752576667088,-9101.34560448,0.00022383,7]
[372296179,1752576667098,-273.54425928,0.00022384,7]
[372296180,1752576667108,-810.0,0.00022384,7]
[372296181,1752576667118,-10094.47362767,0.000224,7]
[372296182,1752576667129,-810.0,0.00022412,7]
[372296183,1752576667139,-259.0,0.00022419,2]
[372296184,1752576667148,-150.055,0.00022419,2]
[372296185,1752576667165,-150.0,0.00022419,2]
[372296186,1752576667175,-150.0,0.00022419,2]
[372296187,1752576667185,-150.0,0.00022419,2]
[372296188,1752576667195,-335.82,0.00022423,2]
[372296189,1752576667208,-810.0,0.00022439,7]
[372296190,1752576667217,-200.0,0.0002244,5]
[372296191,1752576667227,-259.0,0.00022461,2]
[372296192,1752576667237,-151.0,0.00022463,7]
[372296193,1752576667247,-460.0,0.00022465,2]
[372296194,1752576667256,-386.34820583,0.00022465,2]
[372296195,1752576667266,-460.0,0.00022465,2]
[372296196,1752576667275,-460.0,0.00022465,2]
[372296197,1752576667285,-280.34128678,0.00022465,2]
[372296198,1752576667295,-532.14,0.00022465,2]
[372296199,1752576667305,-615.03,0.00022465,2]
[372296200,1752576667317,-621.3,0.00022465,2]
[372296201,1752576667328,-460.0,0.00022465,2]
[372296202,1752576667338,-887.33,0.00022465,2]
[372296203,1752576667349,-460.0,0.00022465,2]
[372296204,1752576667363,-151.0,0.00022465,7]
[372296205,1752576667373,-460.0,0.00022465,2]
[372296206,1752576667383,-151.0,0.00022465,7]
[372296207,1752576667394,-911.96,0.00022465,2]
[372296208,1752576667404,-350.117062,0.00022465,7]
[372296209,1752576667414,-311.723068,0.00022465,7]
[372296210,1752576667424,-311.723068,0.00022465,7]
[372296211,1752576667434,-350.117062,0.00022465,7]
[372296212,1752576667444,-151.0,0.00022465,7]
[372296213,1752576667456,-151.904691,0.00022465,7]
[372296214,1752576667466,-151.0,0.00022465,7]
[372296215,1752576667476,-728.39,0.00022465,2]
[372296216,1752576667486,-321.501266,0.00022465,7]
[372296217,1752576667496,-321.501266,0.00022465,7]
[372296218,1752576667505,-876.22,0.00022465,2]
[372296219,1752576667516,-460.0,0.00022465,2]
[372296220,1752576667527,-525.07,0.00022465,2]
[372296221,1752576667537,-151.0,0.00022465,7]
[372296222,1752576667547,-460.0,0.00022465,2]
[372296223,1752576667558,-151.0,0.00022465,7]
[372296224,1752576667567,-1929.04,0.00022465,2]
[372296225,1752576667577,-217.30358,0.00022465,7]
[372296226,1752576667587,-217.30358,0.00022465,7]
[372296227,1752576667598,-898.74,0.00022465,2]
[372296228,1752576667607,-151.0,0.00022465,7]
[372296229,1752576667617,-2277.18,0.00022465,2]
[372296230,1752576667627,-223.87527,0.00022465,7]
[372296231,1752576667637,-151.0,0.00022465,7]
[372296232,1752576667647,-151.0,0.00022465,7]
[372296233,1752576667657,-460.0,0.00022465,2]
[372296234,1752576667667,-151.0,0.00022465,7]
[372296235,1752576667676,-2409.93,0.00022465,2]
[372296236,1752576667686,-767.49,0.00022465,2]
[372296237,1752576667696,-3874.16,0.00022465,2]
[372296238,1752576667707,-1024.73,0.00022465,2]
[372296239,1752576667717,-855.332983,0.00022465,7]
[372296240,1752576667727,-169.20995862,0.00022465,2]
[372296241,1752576667737,-855.332983,0.00022465,7]
[372296242,1752576667746,-460.0,0.00022465,2]
[372296243,1752576667756,-2456.27,0.00022465,2]
[372296244,1752576667766,-5607.35,0.00022465,2]
[372296245,1752576667776,-965.9,0.00022465,2]
[372296246,1752576667790,-567.75,0.00022465,2]
[372296247,1752576667800,-700.71,0.00022465,2]
[372296248,1752576667809,-613.96,0.00022465,2]
[372296249,1752576667819,-462.38,0.00022465,2]
[372296250,1752576667829,-910.8,0.00022465,2]
[372296251,1752576667840,-3524.09,0.00022465,2]
[372296252,1752576667849,-151.0,0.00022465,7]
[372296253,1752576667860,-5580.35,0.00022465,2]
[372296254,1752576667870,-151.0,0.00022465,7]
[372296255,1752576667881,-2725.35,0.00022465,2]
[372296256,1752576667891,-151.0,0.00022465,7]
[372296257,1752576667902,-518.31,0.00022465,2]
[372296258,1752576667911,-989.14,0.00022465,2]
[372296259,1752576667920,-793.39,0.00022465,2]
[372296260,1752576667931,-503.873021,0.00022465,7]
[372296261,1752576667940,-460.0,0.00022465,2]
[372296262,1752576667951,-503.873021,0.00022465,7]
[372296263,1752576667961,-1154.57,0.00022465,2]
[372296264,1752576667972,-460.0,0.00022465,2]
[372296265,1752576667982,-460.0,0.00022465,2]
[372296266,1752576667991,-460.0,0.00022465,2]
[372296267,1752576668002,-460.0,0.00022465,2]
[372296268,1752576668013,-460.0,0.00022465,2]
[372296269,1752576668023,-6943.82,0.00022465,2]
[372296270,1752576668033,-1423.61,0.00022465,2]
[372296271,1752576668043,-476.29,0.00022465,2]
[372296272,1752576668053,-460.0,0.00022465,2]
[372296273,1752576668062,-790.9,0.00022465,2]
[372296274,1752576668071,-1209.86,0.00022465,2]
[372296275,1752576668081,-688.25,0.00022465,2]
[372296276,1752576668091,-2697.52,0.00022465,2]
[372296277,1752576668101,-273.69730008,0.00022465,2]
[372296278,1752576668111,-918.36,0.00022465,2]
[372296279,1752576668121,-2341.14,0.00022465,2]
[372296280,1752576668130,-460.0,0.00022465,2]
[372296281,1752576668140,-151.0,0.00022465,7]
[372296282,1752576668150,-551.94,0.00022465,2]
[372296283,1752576668159,-194.762727,0.00022465,7]
[372296284,1752576668169,-563.91,0.00022465,2]
[372296285,1752576668178,-151.0,0.00022465,7]
[372296286,1752576668189,-1174.35,0.00022465,2]
[372296287,1752576668201,-151.0,0.00022465,7]
[372296288,1752576668211,-151.0,0.00022465,7]
[372296289,1752576668221,-8228.16,0.00022465,2]
[372296290,1752576668231,-195.06976,0.00022465,7]
[372296291,1752576668240,-300.0,0.00022466,2]
[372296292,1752576668250,-810.0,0.00022466,7]
[372296293,1752576668260,-168.0,0.00022469,2]
[372296294,1752576668270,-150.0,0.00022473,2]
[372296295,1752576668280,-2178597.45793063,0.0002249,7]
[372296296,1752576668290,-151.0,0.0002249,7]
[372296297,1752576668300,-151.0,0.0002249,7]
[372296298,1752576668311,-288.753545,0.0002249,7]
[372296299,1752576668321,-153.059181,0.0002249,7]
[372296300,1752576668332,-153.059181,0.0002249,7]
[372296301,1752576668342,-285.99222,0.0002249,7]
[372296302,1752576668354,-151.0,0.0002249,7]
[372296303,1752576668365,-151.0,0.0002249,7]
[372296304,1752576668375,-151.0,0.0002249,7]
[372296305,1752576668384,-151.0,0.0002249,7]
[372296306,1752576668394,-201.441829,0.0002249,7]
[372296307,1752576668404,-151.0,0.0002249,7]
[372296308,1752576668414,-151.0,0.0002249,7]
[372296309,1752576668423,-151.0,0.0002249,7]
[372296310,1752576668433,-151.0,0.0002249,7]
[372296311,1752576668443,-151.0,0.0002249,7]
[372296312,1752576668455,-151.0,0.0002249,7]
[372296313,1752576668466,-151.0,0.0002249,7]
[372296314,1752576668475,-151.0,0.0002249,7]
[372296315,1752576668485,-151.0,0.0002249,7]
[372296316,1752576668494,-151.0,0.0002249,7]
[372296317,1752576668504,-151.0,0.0002249,7]
[372296318,1752576668513,-151.0,0.0002249,7]
[372296319,1752576668524,-151.0,0.0002249,7]
[372296320,1752576668534,-768.90203,0.0002249,7]
[372296321,1752576668543,-768.90203,0.0002249,7]
[372296322,1752576668553,-1324.258675,0.0002249,7]
[372296323,1752576668563,-1324.258675,0.0002249,7]
[372296324,1752576668573,-151.0,0.0002249,7]
[372296325,1752576668583,-151.0,0.0002249,7]
[372296326,1752576668594,-292.540885,0.0002249,7]
[372296327,1752576668603,-292.540885,0.0002249,7]
[372296328,1752576668614,-151.0,0.0002249,7]
[372296329,1752576668623,-151.0,0.0002249,7]
[372296330,1752576668633,-214.161332,0.0002249,7]
[372296331,1752576668643,-591.765364,0.0002249,7]
[372296332,1752576668653,-591.765364,0.0002249,7]
[372296333,1752576668663,-151.0,0.0002249,3]
[372296334,1752576668673,-151.0,0.0002249,7]
[372296335,1752576668682,-196.915642,0.0002249,7]
[372296336,1752576668693,-196.915642,0.0002249,7]
[372296337,1752576668704,-825.561749,0.0002249,7]
[372296338,1752576668714,-825.561749,0.0002249,7]
[372296339,1752576668724,-151.0,0.0002249,7]
[372296340,1752576668735,-344.975355,0.0002249,7]
[372296341,1752576668745,-344.975355,0.0002249,7]
[372296342,1752576668755,-151.0,0.0002249,7]
[372296343,1752576668765,-350.117062,0.0002249,7]
[372296344,1752576668774,-311.723068,0.0002249,7]
[372296345,1752576668785,-311.723068,0.0002249,7]
[372296346,1752576668795,-350.117062,0.0002249,7]
[372296347,1752576668806,-152.188917,0.0002249,7]
[372296348,1752576668816,-151.0,0.0002249,7]
[372296349,1752576668827,-321.501266,0.0002249,7]
[372296350,1752576668839,-321.501266,0.0002249,7]
[372296351,1752576668849,-222.052053,0.0002249,7]
[372296352,1752576668859,-1346.302367,0.0002249,7]
[372296353,1752576668870,-1346.302367,0.0002249,7]
[372296354,1752576668881,-151.0,0.0002249,7]
[372296355,1752576668891,-217.30358,0.0002249,7]
[372296356,1752576668901,-217.30358,0.0002249,7]
[372296357,1752576668912,-151.0,0.0002249,7]
[372296358,1752576668922,-151.0,0.0002249,7]
[372296359,1752576668933,-151.0,0.0002249,7]
[372296360,1752576668943,-855.332983,0.0002249,7]
[372296361,1752576668954,-855.332983,0.0002249,7]
[372296362,1752576668964,-151.0,0.0002249,7]
[372296363,1752576668975,-151.0,0.0002249,7]
[372296364,1752576668984,-503.873021,0.0002249,7]
[372296365,1752576668995,-503.873021,0.0002249,7]
[372296366,1752576669006,-151.0,0.0002249,7]
[372296367,1752576669016,-151.0,0.0002249,7]
[372296368,1752576669026,-151.0,0.0002249,7]
[372296369,1752576669037,-209.232453,0.0002249,7]
[372296370,1752576669047,-195.06976,0.0002249,7]
[372296371,1752576669057,-810.0,0.00022494,7]
[372296372,1752576669068,-18999.78337502,0.000225,4]
[372296373,1752576669078,-1923.96,0.000225,2]
[372296374,1752576669219,-810.0,0.00022521,7]
[372296375,1752576669230,-151.0,0.00022525,2]
[372296376,1752576669240,-25000.0,0.00022525,2]
[372296377,1752576669249,-810.0,0.00022549,7]
[372296378,1752576669259,-154.0,0.00022566,3]
[372296379,1752576669268,-154.0,0.00022566,3]
[372296380,1752576669277,-255.43078817,0.00022566,3]
[372296381,1752576669287,-318.0,0.00022566,3]
[372296382,1752576669297,-318.0,0.00022566,3]
[372296383,1752576669306,-318.0,0.00022566,3]
[372296384,1752576669316,-318.0,0.00022566,3]
[372296385,1752576669326,-318.0,0.00022566,3]
[372296386,1752576669335,-318.0,0.00022566,3]
[372296387,1752576669344,-318.0,0.00022566,3]
[372296388,1752576669353,-318.0,0.00022566,3]
[372296389,1752576669363,-318.0,0.00022566,3]
[372296390,1752576669372,-318.0,0.00022566,3]
[372296391,1752576669381,-318.0,0.00022566,3]
[372296392,1752576669391,-318.0,0.00022566,3]
[372296393,1752576669400,-318.0,0.00022566,3]
[372296394,1752576669410,-318.0,0.00022566,3]
[372296395,1752576669419,-318.0,0.00022566,3]
[372296396,1752576669428,-318.0,0.00022566,3]
[372296397,1752576669438,-318.0,0.00022566,3]
[372296398,1752576669447,-318.0,0.00022566,3]
[372296399,1752576669461,-318.0,0.00022566,3]
[372296400,1752576669471,-318.0,0.00022566,3]
[372296401,1752576669481,-318.0,0.00022566,3]
[372296402,1752576669490,-318.0,0.00022566,3]
[372296403,1752576669500,-318.0,0.00022566,3]
[372296404,1752576669509,-318.0,0.00022566,3]
[372296405,1752576669519,-318.0,0.00022566,3]
[372296406,1752576669529,-318.0,0.00022566,3]
[372296407,1752576669538,-318.0,0.00022566,3]
[372296408,1752576669548,-318.0,0.00022566,3]
[372296409,1752576669557,-318.0,0.00022566,3]
[372296410,1752576669566,-318.0,0.00022566,3]
[372296411,1752576669576,-318.0,0.00022566,3]
[372296412,1752576669586,-318.0,0.00022566,3]
[372296413,1752576669595,-318.0,0.00022566,3]
[372296414,1752576669605,-318.0,0.00022566,3]
[372296415,1752576669615,-318.0,0.00022566,3]
[372296416,1752576669623,-318.0,0.00022566,3]
[372296417,1752576669633,-318.0,0.00022566,3]
[372296418,1752576669642,-418.99541613,0.00022566,3]
[372296419,1752576669651,-318.0,0.00022566,3]
[372296420,1752576669660,-318.0,0.00022566,3]
[372296421,1752576669670,-1500.0,0.00022568,2]
[372296422,1752576669680,-1500.0,0.00022568,2]
[372296423,1752576669690,-1500.0,0.00022568,2]
[372296424,1752576669701,-1500.0,0.00022568,2]
[372296425,1752576669710,-981.75419532,0.00022568,2]
[372296426,1752576669720,-1500.0,0.00022568,2]
[372296427,1752576669729,-1000.0,0.00022568,2]
[372296428,1752576669739,-810.0,0.00022576,7]
[372296429,1752576669749,-9101.34560448,0.0002259,7]
[372296430,1752576669759,-373.088381,0.00022603,2]
[372296431,1752576669768,-810.0,0.00022603,7]
[372296432,1752576669779,-810.0,0.00022631,7]
[372296433,1752576669792,-428.5142116,0.00022658,2]
[372296434,1752576669802,-810.0,0.00022658,7]
[372296435,1752576669812,-168.0,0.00022673,2]
[372296436,1752576669823,-800.0,0.00022676,2]
[372296437,1752576669832,-810.0,0.00022686,7]
[372296438,1752576669842,-259.0,0.00022698,2]
[372296439,1752576669852,-800.0,0.00022706,2]
[372296440,1752576669862,-800.0,0.00022712,2]
[372296441,1752576669872,-810.0,0.00022713,7]
[372296442,1752576669882,-153.059181,0.00022739,7]
[372296443,1752576669891,-153.059181,0.00022739,7]
[372296444,1752576669900,-151.0,0.00022739,7]
[372296445,1752576669911,-458.99438428,0.00022739,2]
[372296446,1752576669921,-367.07449807,0.00022739,2]
[372296447,1752576669930,-238.88601377,0.00022739,2]
[372296448,1752576669939,-532.14,0.00022739,2]
[372296449,1752576669948,-615.03,0.00022739,2]
[372296450,1752576669958,-621.3,0.00022739,2]
[372296451,1752576669967,-460.0,0.00022739,2]
[372296452,1752576669977,-887.33,0.00022739,2]
[372296453,1752576669986,-460.0,0.00022739,2]
[372296454,1752576669996,-460.0,0.00022739,2]
[372296455,1752576670005,-911.96,0.00022739,2]
[372296456,1752576670015,-728.39,0.00022739,2]
[372296457,1752576670024,-876.22,0.00022739,2]
[372296458,1752576670033,-460.0,0.00022739,2]
[372296459,1752576670043,-525.07,0.00022739,2]
[372296460,1752576670052,-460.0,0.00022739,2]
[372296461,1752576670062,-1929.04,0.00022739,2]
[372296462,1752576670071,-898.74,0.00022739,2]
[372296463,1752576670081,-2277.18,0.00022739,2]
[372296464,1752576670091,-162.62159044,0.00022739,2]
[372296465,1752576670100,-2409.93,0.00022739,2]
[372296466,1752576670110,-767.49,0.00022739,2]
[372296467,1752576670120,-3874.16,0.00022739,2]
[372296468,1752576670130,-1024.73,0.00022739,2]
[372296469,1752576670139,-460.0,0.00022739,2]
[372296470,1752576670148,-2456.27,0.00022739,2]
[372296471,1752576670157,-5607.35,0.00022739,2]
[372296472,1752576670167,-965.9,0.00022739,2]
[372296473,1752576670176,-700.71,0.00022739,2]
[372296474,1752576670187,-567.75,0.00022739,2]
[372296475,1752576670196,-613.96,0.00022739,2]
[372296476,1752576670208,-462.38,0.00022739,2]
[372296477,1752576670217,-910.8,0.00022739,2]
[372296478,1752576670227,-3524.09,0.00022739,2]
[372296479,1752576670236,-5580.35,0.00022739,2]
[372296480,1752576670246,-2725.35,0.00022739,2]
[372296481,1752576670256,-518.31,0.00022739,2]
[372296482,1752576670266,-989.14,0.00022739,2]
[372296483,1752576670275,-793.39,0.00022739,2]
[372296484,1752576670285,-460.0,0.00022739,2]
[372296485,1752576670296,-1154.57,0.00022739,2]
[372296486,1752576670306,-460.0,0.00022739,2]
[372296487,1752576670318,-460.0,0.00022739,2]
[372296488,1752576670328,-460.0,0.00022739,2]
[372296489,1752576670339,-460.0,0.00022739,2]
[372296490,1752576670349,-460.0,0.00022739,2]
[372296491,1752576670359,-6943.82,0.00022739,2]
[372296492,1752576670370,-476.29,0.00022739,2]
[372296493,1752576670380,-1423.61,0.00022739,2]
[372296494,1752576670390,-460.0,0.00022739,2]
[372296495,1752576670400,-790.9,0.00022739,2]
[372296496,1752576670409,-1209.86,0.00022739,2]
[372296497,1752576670420,-688.25,0.00022739,2]
[372296498,1752576670430,-2697.52,0.00022739,2]
[372296499,1752576670439,-918.36,0.00022739,2]
[372296500,1752576670455,-2341.14,0.00022739,2]
[372296501,1752576670465,-460.0,0.00022739,2]
[372296502,1752576670475,-551.94,0.00022739,2]
[372296503,1752576670485,-563.91,0.00022739,2]
[372296504,1752576670495,-1174.35,0.00022739,2]
[372296505,1752576670504,-8228.16,0.00022739,2]
[372296506,1752576670514,-810.0,0.0002274,7]
[372296507,1752576670523,-800.0,0.0002276,2]
[372296508,1752576670533,-810.0,0.00022768,7]
[372296509,1752576670543,-660.0,0.0002277,2]
[372296510,1752576670552,-306.0,0.00022795,2]
[372296511,1752576670561,-831.3340687,0.00022795,7]
[372296512,1752576670572,-9101.34560448,0.00022797,7]
[372296513,1752576670584,-215.0738,0.00022798,2]
[372296514,1752576670594,-6228.58,0.000228,7]
[372296515,1752576670603,-2823.78,0.000228,7]
[372296516,1752576670613,-170.55025598,0.00022877,2]
[372296517,1752576670623,-170.55025599,0.00022877,2]
[372296518,1752576670632,-155.04568726,0.00022877,2]
[372296519,1752576670641,-660453.77296309,0.000229,7]
[372296520,1752576670746,-375.481998,0.000229,7]
[372296521,1752576670854,-460.0,0.00019178,2]
[372296522,1752576670864,-114.47949418,0.00019178,2]
[372296523,1752576670877,-345.52050582,0.00019178,2]
[372296524,1752576670886,-119.72653804,0.00019452,2]
[372296525,1752576670898,-185.0176489,0.00019452,2]
[372296526,1752576670907,-460.0,0.00019452,2]
[372296527,1752576670916,-195.06976,0.00020821,2]
[372296528,1752576670927,-195.06976,0.0002143,2]
[372296529,1752576670936,-152.636,0.00022315,2]
[372296530,1752576670945,-1541.3068311,0.000229,7]
[372296531,1752576670958,-354.66732368,0.000229,7]
[372296532,1752576670970,-11716.994,0.000229,7]
[372296534,1752576799894,1252.159,0.0002739,120]
[372296537,1752576842069,1098.57438347,0.00025505,120]
[372296538,1752576847160,244.937793,0.00027397,120]
[372296539,1752577172681,218.516488,0.00013699,2]
[372296556,1752577463864,249.0,0.00024658,60]
[372296561,1752577627253,-382.65230568,0.00017106,2]
[372296563,1752577638082,-269.68008038,0.00017106,2]
[372296564,1752577654105,-304.6896548,0.00016888,2]
[372296565,1752577654129,-1223.6247795,0.0001695,2]
[372296566,1752577654151,-343.20543025,0.00017106,2]
[372296567,1752577655973,-204.46218369,0.00017106,2]
[372296568,1752577655995,-300.0,0.00017106,2]
[372296569,1752577656029,-19412.7704166,0.00017107,2]
[372296570,1752577656050,-300.0,0.00017391,2]
[372296571,1752577656076,-1200.0,0.00017391,2]
[372296572,1752577656098,-300.0,0.00017391,2]
[372296573,1752577656121,-8282.76739971,0.00017392,2]
[372296574,1752577705637,-1717.23260029,0.00017392,2]
[372296575,1752577705659,-355.61963609,0.00017932,2]
[372296576,1752577715198,-161.0,0.0001811,2]
[372296577,1752577717529,-168.16811945,0.0001811,2]
[372296578,1752577719845,-276.81808577,0.0001811,2]
[372296579,1752577724572,-192.4,0.0001811,2]
[372296580,1752577728139,-251.28062666,0.0001811,2]
[372296581,1752577730706,-350.57672805,0.0001811,2]
[372296582,1752577730729,-22.95479136,0.00018143,2]
[372296583,1752577735349,-270.15316004,0.00018143,2]
[372296584,1752577735374,-4.98438622,0.00018167,3]
[372296585,1752577737319,-160.94012494,0.00018167,3]
[372296586,1752577740128,-202.93548884,0.00018167,3]
[372296587,1752577740156,-23.53451116,0.00018167,3]
[372296588,1752577743551,-268.58596614,0.00018167,3]
[372296589,1752577748409,-313.8695227,0.00018167,3]
[372296590,1752577748433,-254.35563105,0.00018167,3]
[372296591,1752577751920,-172.62981444,0.00018167,3]
[372296592,1752577754315,-152.21953588,0.00018167,3]
[372296593,1752577757156,-154.07862402,0.00018167,3]
[372296594,1752577763592,-83.92639461,0.00018167,3]
[372296595,1752577763614,-125.66595006,0.00018167,3]
[372296605,1752577832735,-29.51404994,0.00018167,3]
[372296606,1752577832745,-226.44,0.00018167,3]
[372296607,1752577832756,-173.83,0.00018167,3]
[372296608,1752577832766,-521.53,0.00018167,3]
[372296609,1752577832776,-519.78595006,0.00018171,2]
[372296610,1752577832788,-680.21404994,0.00018171,2]
[372296611,1752577832798,-300.0,0.00018171,2]
[372296612,1752577832808,-300.0,0.00018171,2]
[372296613,1752577832818,-300.0,0.00018171,2]
[372296614,1752577832828,-1866.61114396,0.00018172,2]
[372296615,1752577832840,-7049.83461245,0.00018172,2]
[372296616,1752577832880,-42.51692285,0.00018172,2]
[372296617,1752577832892,-321.06130044,0.00018172,2]
[372296619,1752577838804,-11737.37892391,0.00018172,2]
[372296620,1752577838814,-500.0,0.00018173,2]
[372296621,1752577838824,-500.0,0.00018173,2]
[372296622,1752577838833,-500.0,0.00018173,2]
[372296624,1752577838843,-500.0,0.00018173,2]
[372296626,1752577838853,-648.90825952,0.00018173,2]
[372296628,1752577838863,-500.0,0.00018173,2]
[372296630,1752577838872,-231.88414381,0.00018173,2]
[372296632,1752577838882,-500.0,0.00018173,2]
[372296633,1752577838892,-500.0,0.00018173,2]
[372296634,1752577838901,-502.79331176,0.00018173,2]
[372296635,1752577838911,-524.39092043,0.00018176,2]
[372296636,1752577838921,-500.0,0.00018176,2]
[372296637,1752577838931,-428.6106121,0.00018176,2]
[372296638,1752577838940,-218.74382155,0.00018176,2]
[372296639,1752577838949,-359.1322657,0.00018176,2]
[372296640,1752577838959,-234.45923871,0.00018176,2]
[372296641,1752577838968,-500.0,0.00018176,2]
[372296642,1752577838978,-200.77695813,0.00018176,2]
[372296643,1752577838988,-500.0,0.00018176,2]
[372296644,1752577838998,-291187.80898395,0.00018177,2]
[372296645,1752577839018,-78812.19101605,0.00018177,2]
[372296646,1752577839028,-1352.9938354,0.00018481,2]
[372296647,1752577839038,-2837.45514068,0.00018581,2]
[372296648,1752577839047,-344.0,0.00018681,2]
[372296649,1752577839056,-1000.0,0.00018721,2]
[372296650,1752577839066,-1000.0,0.00018721,2]
[372296651,1752577839075,-6676.57172299,0.000189,2]
[372296652,1752577839085,-302.84859387,0.000189,2]
[372296653,1752577839095,-1352.99383539,0.00019018,2]
[372296654,1752577839104,-152.38882156,0.00019089,2]
[372296655,1752577839114,-6676.57172299,0.00019141,2]
[372296656,1752577839126,-500.0,0.00019173,2]
[372296657,1752577839138,-503.01863022,0.00019173,2]
[372296658,1752577839148,-500.0,0.00019173,2]
[372296659,1752577839157,-500.0,0.00019173,2]
[372296660,1752577839168,-500.0,0.00019173,2]
[372296661,1752577839178,-500.0,0.00019173,2]
[372296662,1752577839187,-155.525,0.00019177,2]
[372296663,1752577839197,-460.0,0.00019178,2]
[372296664,1752577839208,-460.0,0.00019178,2]
[372296665,1752577839219,-460.0,0.00019178,2]
[372296666,1752577839229,-460.0,0.00019178,2]
[372296667,1752577839239,-460.0,0.00019178,2]
[372296668,1752577839250,-463.00299649,0.00019178,2]
[372296669,1752577839259,-460.0,0.00019178,2]
[372296670,1752577839269,-460.0,0.00019178,2]
[372296671,1752577839278,-460.30387237,0.00019178,2]
[372296672,1752577839288,-460.0,0.00019178,2]
[372296673,1752577839297,-460.0,0.00019178,2]
[372296674,1752577839307,-460.0,0.00019178,2]
[372296675,1752577839317,-1000.0,0.00019178,2]
[372296676,1752577839326,-460.0,0.00019178,2]
[372296677,1752577839335,-460.0,0.00019178,2]
[372296678,1752577839345,-460.0,0.00019178,2]
[372296679,1752577839355,-465.46483809,0.00019178,2]
[372296680,1752577839364,-365.67973378,0.00019178,2]
[372296681,1752577839374,-460.0,0.00019178,2]
[372296682,1752577839384,-460.0,0.00019178,2]
[372296683,1752577839393,-460.0,0.00019178,2]
[372296684,1752577839403,-318.64267657,0.00019178,2]
[372296685,1752577839413,-460.0,0.00019178,2]
[372296686,1752577839422,-460.0,0.00019178,2]
[372296687,1752577839432,-461.20108132,0.00019178,2]
[372296688,1752577839442,-460.0,0.00019178,2]
[372296689,1752577839453,-460.0,0.00019178,2]
[372296690,1752577839462,-460.0,0.00019178,2]
[372296691,1752577839472,-340.0,0.00019178,2]
[372296692,1752577839482,-460.0,0.00019178,2]
[372296693,1752577839494,-460.0,0.00019178,2]
[372296694,1752577839504,-460.0,0.00019178,2]
[372296695,1752577839513,-460.0,0.00019178,2]
[372296696,1752577839523,-460.0,0.00019178,2]
[372296697,1752577839532,-460.0,0.00019178,2]
[372296698,1752577839542,-460.0,0.00019178,2]
[372296699,1752577839552,-460.0,0.00019178,2]
[372296700,1752577839561,-460.87764905,0.00019178,2]
[372296701,1752577839571,-460.0,0.00019178,2]
[372296702,1752577839580,-461.39437186,0.00019178,2]
[372296703,1752577839590,-460.0,0.00019178,2]
[372296704,1752577839600,-460.0,0.00019178,2]
[372296705,1752577839610,-460.0,0.00019178,2]
[372296706,1752577839620,-460.0,0.00019178,2]
[372296707,1752577839629,-460.0,0.00019178,2]
[372296708,1752577839639,-460.0,0.00019178,2]